[Event "4NCL Div 1 2024-25"]
[Site "England"]
[Date "2025.04.05"]
[Round "7.44"]
[White "Chow, Samuel"]
[Black "Gourlay, Iain"]
[Result "1-0"]
[Annotator "ChessBase"]
[ECO "D35"]
[WhiteElo "2348"]
[BlackElo "2303"]
[PlyCount "87"]
[EventDate "2024.11.23"]
[EventType "team-tourn"]
[EventCountry "ENG"]
[SourceTitle "playchess.com"]
[Source "ChessBase"]
[SourceQuality "1"]
[TimeControl "40/6000+30:3000+30"]

1. d4 {[%emt 0:10:03]} d5 {[%emt 0:14:35]} 2. c4 {[%emt 0:00:14]} e6 {[%emt 0:00:25]} 3. Nc3 {[%emt 0:00:29]} Nf6 {[%emt 0:00:17]} 4. cxd5 {[%emt 0:00:32]} exd5 {[%emt 0:00:14]} 5. Bg5 {[%emt 0:00:29]} c6 {[%emt 0:00:37]} 6. e3 {[%emt 0:00:16]} h6 {[%emt 0:00:20]} 7. Bh4 {[%emt 0:00:15]} Be7 {[%emt 0:00:17]} 8. Bd3 {[%emt 0:00:12]} O-O {[%emt 0:00:45]} 9. f3 {[%emt 0:01:19]} c5 {[%emt 0:14:49]} 10. Nge2 {[%emt 0:09:51]} Nc6 {[%emt 0:03:27]} 11. Bf2 {[%emt 0:06:21]} cxd4 {[%emt 0:11:31]} 12. exd4 {[%emt 0:00:44]} Re8 {[%emt 0:06:34]} 13. O-O {[%emt 0:01:53]} Be6 {[%emt 0:05:41]} 14. Rc1 {[%emt 0:10:01]} Qd7 {[%emt 0:05:24]} 15. Qb3 {[%emt 0:08:11]} Bf5 {[%emt 0:08:19]} 16. Bxf5 {[%emt 0:06:25]} Qxf5 {[%emt 0:00:07]} 17. Qxb7 {[%emt 0:00:16]} Nb4 {[%emt 0:01:24]} 18. Bg3 {[%emt 0:04:19]} Nh5 {[%emt 0:20:46]} 19. Be5 {[%emt 0:02:54]} Qd3 {[%emt 0:05:31]} 20. g4 {[%emt 0:05:25]} Qe3+ {[%emt 0:06:37]} 21. Kg2 {[%emt 0:02:35]} Nd3 {[%emt 0:00:46]} 22. gxh5 {[%emt 0:01:12]} Nxe5 {[%emt 0:00:18]} 23. dxe5 {[%emt 0:02:22]} d4 {[%emt 0:00:18]} 24. Qe4 {[%emt 0:09:17]} Qg5+ {[%emt 0:00:04]} 25. Ng3 {[%emt 0:00:53]} dxc3 {[%emt 0:00:09]} 26. f4 {[%emt 0:01:02]} Qg4 {[%emt 0:00:20]} 27. Rxc3 {[%emt 0:00:17]} Rab8 {[%emt 0:00:34]} 28. b3 {[%emt 0:02:13]} Red8 {[%emt 0:01:41]} 29. Rc2 {[%emt 0:04:46]} Rb4 {[%emt 0:00:45]} 30. Qf5 {[%emt 0:01:21]} Qh4 {[%emt 0:01:10]} 31. Rff2 {[%emt 0:03:22]} Rbd4 {[%emt 0:00:24]} 32. Rc8 {[%emt 0:01:05]} Rxc8 {[%emt 0:00:54]} 33. Qxc8+ {[%emt 0:00:05]} Kh7 {[%emt 0:00:06]} 34. Qe8 {[%emt 0:03:06]} Bb4 {[%emt 0:01:34]} 35. Qxf7 {[%emt 0:00:21]} Be1 {[%emt 0:00:22]} 36. Qf5+ {[%emt 0:03:12]} Kg8 {[%emt 0:00:22]} 37. Rc2 {[%emt 0:00:30]} Rd8 {[%emt 0:00:34]} 38. Rc7 {[%emt 0:06:07]} Kh8 {[%emt 0:00:04]} 39. Rc8 {[%emt 0:00:53]} Qe7 {[%emt 0:01:00]} 40. Ne4 {[%emt 0:01:01]} Bb4 {[%emt 0:00:49]} 41. Kf3 {[%emt 0:53:14]} Qe8 {[%emt 0:21:58]} 42. Nf6 {[%emt 0:00:00]} gxf6 {[%emt 0:01:46]} 43. Qxf6+ {[%emt 0:00:00]} Kh7 {[%emt 0:00:05]} 44. Qg6+ {[%emt 0:00:00]} 1-0

[Event "4NCL Div 1 2024-25"]
[Site "England"]
[Date "2025.04.05"]
[Round "7.45"]
[White "Berry, Neil"]
[Black "Wall, Gavin"]
[Result "1-0"]
[Annotator "ChessBase"]
[ECO "A56"]
[WhiteElo "2248"]
[BlackElo "2258"]
[PlyCount "53"]
[EventDate "2024.11.23"]
[EventType "team-tourn"]
[EventCountry "ENG"]
[SourceTitle "playchess.com"]
[Source "ChessBase"]
[SourceQuality "1"]
[TimeControl "40/6000+30:3000+30"]

1. d4 {[%emt 0:10:09]} Nf6 {[%emt 0:11:29]} 2. c4 {[%emt 0:00:34]} c5 {[%emt 0:00:52]} 3. d5 {[%emt 0:00:34]} e5 {[%emt 0:00:14]} 4. Nc3 {[%emt 0:00:56]} d6 {[%emt 0:00:05]} 5. e4 {[%emt 0:00:21]} Be7 {[%emt 0:00:09]} 6. Nf3 {[%emt 0:07:34]} O-O {[%emt 0:00:48]} 7. h3 {[%emt 0:00:27]} Ne8 {[%emt 0:02:25]} 8. g4 {[%emt 0:02:35]} Na6 {[%emt 0:10:50]} 9. Bd3 {[%emt 0:02:06]} Bd7 {[%emt 0:07:10]} 10. Be3 {[%emt 0:02:49]} Rb8 {[%emt 0:02:43]} 11. a3 {[%emt 0:04:26]} Nec7 {[%emt 0:03:09]} 12. Qe2 {[%emt 0:04:57]} Qe8 {[%emt 0:00:35]} 13. Nd2 {[%emt 0:17:37]} b5 {[%emt 0:00:58]} 14. O-O {[%emt 0:12:43]} bxc4 {[%emt 0:10:03]} 15. Nxc4 {[%emt 0:10:14]} Qc8 {[%emt 0:16:53]} 16. Rfc1 {[%emt 0:02:23]} g6 {[%emt 0:06:41]} 17. f4 {[%emt 0:06:18]} f6 {[%emt 0:06:34]} 18. fxe5 {[%emt 0:01:06]} fxe5 {[%emt 0:00:05]} 19. Bh6 {[%emt 0:00:34]} Rf7 {[%emt 0:01:34]} 20. Rf1 {[%emt 0:02:38]} Be8 {[%emt 0:08:52]} 21. Rxf7 {[%emt 0:01:04]} Bxf7 {[%emt 0:00:01]} 22. Rf1 {[%emt 0:00:18]} Qd7 {[%emt 0:01:16]} 23. Na5 {[%emt 0:03:27]} Rb6 {[%emt 0:01:51]} 24. Nc6 {[%emt 0:00:42]} Nb8 {[%emt 0:01:58]} 25. Qf2 {[%emt 0:04:24]} Bf8 {[%emt 0:00:13]} 26. Bxf8 {[%emt 0:00:20]} Kxf8 {[%emt 0:00:02]} 27. Nd8 {[%emt 0:00:39]} 1-0

[Event "4NCL Div 1 2024-25"]
[Site "England"]
[Date "2025.04.05"]
[Round "7.46"]
[White "Li, Harry"]
[Black "Shafi, Declan"]
[Result "1-0"]
[Annotator "ChessBase"]
[ECO "C43"]
[WhiteElo "2203"]
[BlackElo "2181"]
[PlyCount "87"]
[EventDate "2024.11.23"]
[EventType "team-tourn"]
[EventCountry "ENG"]
[SourceTitle "playchess.com"]
[Source "ChessBase"]
[SourceQuality "1"]
[TimeControl "40/6000+30:3000+30"]

1. e4 {[%emt 0:10:02]} e5 {[%emt 0:10:05]} 2. Nf3 {[%emt 0:00:03]} Nf6 {[%emt 0:00:07]} 3. d4 {[%emt 0:00:30]} Nxe4 {[%emt 0:00:24]} 4. Bd3 {[%emt 0:00:04]} d5 {[%emt 0:00:16]} 5. Nxe5 {[%emt 0:00:14]} Nd7 {[%emt 0:00:35]} 6. Nc3 {[%emt 0:00:25]} Nxe5 {[%emt 0:09:23]} 7. dxe5 {[%emt 0:00:08]} Bb4 {[%emt 0:13:18]} 8. O-O {[%emt 0:02:25]} Bxc3 {[%emt 0:06:31]} 9. bxc3 {[%emt 0:00:37]} Bf5 {[%emt 0:03:58]} 10. Qe1 {[%emt 0:14:23]} Bg6 {[%emt 0:06:53]} 11. Ba3 {[%emt 0:11:22]} Qd7 {[%emt 0:07:10]} 12. Rb1 {[%emt 0:03:00]} O-O-O {[%emt 0:01:27]} 13. f3 {[%emt 0:04:36]} Qa4 {[%emt 0:07:39]} 14. Rb3 {[%emt 0:24:48]} c5 {[%emt 0:10:33]} 15. fxe4 {[%emt 0:12:57]} c4 {[%emt 0:00:23]} 16. Be7 {[%emt 0:00:03]} cxb3 {[%emt 0:03:34]} 17. axb3 {[%emt 0:00:19]} Qc6 {[%emt 0:01:29]} 18. Qe3 {[%emt 0:11:58]} dxe4 {[%emt 0:02:56]} 19. Bc4 {[%emt 0:00:46]} Rd7 {[%emt 0:06:50]} 20. Bd6 {[%emt 0:00:46]} b5 {[%emt 0:01:21]} 21. Be2 {[%emt 0:00:11]} Kb7 {[%emt 0:03:36]} 22. Ra1 {[%emt 0:00:27]} a6 {[%emt 0:00:24]} 23. c4 {[%emt 0:00:43]} Ra8 {[%emt 0:04:09]} 24. c5 {[%emt 0:00:26]} f6 {[%emt 0:02:45]} 25. Bg4 {[%emt 0:03:48]} f5 {[%emt 0:02:04]} 26. Bh3 {[%emt 0:01:35]} Qd5 {[%emt 0:01:45]} 27. g3 {[%emt 0:01:13]} Re8 {[%emt 0:01:08]} 28. c4 {[%emt 0:02:10]} Qc6 {[%emt 0:01:06]} 29. Bf1 {[%emt 0:00:56]} b4 {[%emt 0:01:17]} 30. Ra4 {[%emt 0:00:53]} Ka7 {[%emt 0:00:13]} 31. Rxb4 {[%emt 0:00:29]} Rb7 {[%emt 0:01:22]} 32. Ra4 {[%emt 0:00:14]} Re6 {[%emt 0:01:15]} 33. Bh3 {[%emt 0:02:07]} Re8 {[%emt 0:00:29]} 34. Ra1 {[%emt 0:00:41]} h6 {[%emt 0:00:32]} 35. Qc3 {[%emt 0:00:45]} f4 {[%emt 0:00:32]} 36. gxf4 {[%emt 0:00:11]} Rf7 {[%emt 0:00:10]} 37. e6 {[%emt 0:01:22]} Rf6 {[%emt 0:00:12]} 38. Rf1 {[%emt 0:00:14]} Bh5 {[%emt 0:00:22]} 39. f5 {[%emt 0:00:24]} Bf3 {[%emt 0:00:06]} 40. Ra1 {[%emt 0:01:13]} Rd8 {[%emt 0:01:10]} 41. b4 {[%emt 0:22:53]} Kb7 {[%emt 0:20:32]} 42. b5 {[%emt 0:04:13]} axb5 {[%emt 0:00:27]} 43. Qa5 {[%emt 0:02:08]} Rxd6 {[%emt 0:01:13]} 44. Qa8+ {[%emt 0:00:07]} 1-0

[Event "4NCL Div 1 2024-25"]
[Site "England"]
[Date "2025.04.05"]
[Round "7.47"]
[White "McKay, Roderick M"]
[Black "Carroll, Thomas"]
[Result "1-0"]
[Annotator "ChessBase"]
[ECO "B10"]
[WhiteElo "2177"]
[BlackElo "2126"]
[PlyCount "83"]
[EventDate "2024.11.23"]
[EventType "team-tourn"]
[EventCountry "ENG"]
[SourceTitle "playchess.com"]
[Source "ChessBase"]
[SourceQuality "1"]
[TimeControl "40/6000+30:3000+30"]

1. e4 {[%emt 0:10:17]} c6 {[%emt 0:10:16]} 2. d3 {[%emt 0:01:19]} d5 {[%emt 0:01:28]} 3. c3 {[%emt 0:00:34]} e5 {[%emt 0:01:48]} 4. Qc2 {[%emt 0:00:58]} Nf6 {[%emt 0:01:54]} 5. Nf3 {[%emt 0:00:12]} Bd6 {[%emt 0:02:30]} 6. Be2 {[%emt 0:00:37]} O-O {[%emt 0:00:13]} 7. Nbd2 {[%emt 0:00:14]} Nbd7 {[%emt 0:02:24]} 8. Nf1 {[%emt 0:06:14]} a5 {[%emt 0:03:47]} 9. Ng3 {[%emt 0:03:15]} Nc5 {[%emt 0:04:30]} 10. O-O {[%emt 0:05:21]} Re8 {[%emt 0:01:13]} 11. Be3 {[%emt 0:02:17]} Ne6 {[%emt 0:07:25]} 12. Rad1 {[%emt 0:17:45]} Nf4 {[%emt 0:03:22]} 13. Rfe1 {[%emt 0:05:40]} Nxe2+ {[%emt 0:04:02]} 14. Qxe2 {[%emt 0:03:05]} h6 {[%emt 0:04:33]} 15. Nh4 {[%emt 0:06:14]} Ng4 {[%emt 0:03:06]} 16. Nhf5 {[%emt 0:00:26]} Nxe3 {[%emt 0:01:16]} 17. Qxe3 {[%emt 0:02:08]} Bf8 {[%emt 0:01:48]} 18. d4 {[%emt 0:01:36]} exd4 {[%emt 0:03:19]} 19. Qxd4 {[%emt 0:00:48]} Be6 {[%emt 0:05:00]} 20. exd5 {[%emt 0:05:09]} Bxd5 {[%emt 0:10:56]} 21. Rxe8 {[%emt 0:00:58]} Qxe8 {[%emt 0:01:54]} 22. Nh5 {[%emt 0:01:29]} Qe4 {[%emt 0:08:52]} 23. Nxh6+ {[%emt 0:03:22]} Kh7 {[%emt 0:01:05]} 24. Qxe4+ {[%emt 0:00:26]} Bxe4 {[%emt 0:00:04]} 25. Ng4 {[%emt 0:00:40]} Bd5 {[%emt 0:07:16]} 26. a3 {[%emt 0:00:59]} Ra6 {[%emt 0:04:54]} 27. Ne3 {[%emt 0:02:34]} Bb3 {[%emt 0:04:12]} 28. Rd8 {[%emt 0:01:40]} Bc5 {[%emt 0:00:43]} 29. Nf4 {[%emt 0:00:44]} Rb6 {[%emt 0:01:09]} 30. g3 {[%emt 0:01:25]} a4 {[%emt 0:00:40]} 31. Rd2 {[%emt 0:01:44]} Rb5 {[%emt 0:04:52]} 32. h4 {[%emt 0:08:40]} f6 {[%emt 0:01:23]} 33. Kg2 {[%emt 0:05:11]} Ba7 {[%emt 0:00:16]} 34. Kf3 {[%emt 0:00:59]} Bb8 {[%emt 0:00:58]} 35. Rd7 {[%emt 0:03:44]} Ba2 {[%emt 0:01:39]} 36. c4 {[%emt 0:01:50]} Rxb2 {[%emt 0:00:15]} 37. Ne6 {[%emt 0:01:38]} b5 {[%emt 0:00:54]} 38. Rxg7+ {[%emt 0:01:42]} Kh8 {[%emt 0:00:03]} 39. Ng4 {[%emt 0:00:43]} Rb3+ {[%emt 0:03:27]} 40. Kg2 {[%emt 0:01:06]} Bb1 {[%emt 0:00:31]} 41. Nxf6 {[%emt 0:51:37]} Be4+ {[%emt 0:22:21]} 42. Kh2 {[%emt 0:00:00]} 1-0